[Event "41st Nezhmetdinov Memorial 2019"]
[Site "Kazan"]
[Date "2019.06.04"]
[Round "5.5"]
[White "Faizrakhmanov, Ramil"]
[Black "Khanin, Semen"]
[Result "1-0"]
[ECO "E11"]
[WhiteElo "2421"]
[BlackElo "2529"]
[Annotator "RC"]
[PlyCount "187"]
[EventDate "2019.05.31"]
[EventType "swiss"]
[EventCountry "RUS"]
[SourceTitle "playchess.com"]
[Source "ChessBase"]
[SourceQuality "1"]
[TimeControl "5400+30"]

1. d4 {[%emt 0:00:00]} Nf6 {[%emt 0:00:00]} 2. c4 {[%emt 0:00:00]} e6 {[%emt 0:00:00]} 3. Nf3 {[%emt 0:00:45]} Bb4+ {[%emt 0:00:03]} 4. Bd2 {[%emt 0:00:44]} Bxd2+ {[%emt 0:00:05]} 5. Qxd2 {[%emt 0:01:42]} O-O {[%emt 0:00:07]} 6. Nc3 {[%emt 0:00:55]} d5 {[%emt 0:00:06]} 7. e3 {[%emt 0:01:28]} Qe7 {[%emt 0:00:05]} 8. cxd5 {[%emt 0:06:01]} exd5 {[%emt 0:00:42]} 9. Bd3 {[%emt 0:00:24]} c6 {[%emt 0:03:07]} 10. Qc2 {[%emt 0:02:17]} Nbd7 {[%emt 0:02:26]} 11. O-O {[%emt 0:02:49]} Re8 {[%emt 0:01:11]} 12. Nd2 {[%emt 0:10:50]} Nf8 {[%emt 0:20:56]} 13. h3 {[%emt 0:03:49]} Ne6 {[%emt 0:01:48]} 14. Nf3 {[%emt 0:01:12]} g6 {[%emt 0:02:48]} 15. a3 {[%emt 0:05:56]} Ng7 {[%emt 0:02:58]} 16. b4 {[%emt 0:01:43]} Bf5 {[%emt 0:06:29]} 17. b5 {[%emt 0:06:29]} cxb5 {[%emt 0:08:59]} 18. Bxf5 {[%emt 0:00:42]} Nxf5 {[%emt 0:00:06]} 19. Nxb5 {[%emt 0:00:10]} Rac8 {[%emt 0:02:37]} 20. Qd3 {[%emt 0:03:51]} Ne4 {[%emt 0:07:17]} 21. Nxa7 {[%emt 0:06:00]} Rc3 {[%emt 0:00:40]} 22. Qb1 {[%emt 0:00:57]} Ng5 {[%emt 0:15:25]} 23. Nxg5 {[%emt 0:14:27]} Qxg5 {[%emt 0:00:04]} 24. Qd1 {[%emt 0:01:01]} Re4 {[%emt 0:03:11]} 25. Kh2 {[%emt 0:01:08]} Nh4 {[%emt 0:03:58]} 26. Rg1 {[%emt 0:00:32]} Qf6 {[%emt 0:01:54]} 27. Qd2 {[%emt 0:02:07]} Rxa3 {[%emt 0:04:51]} 28. Rxa3 {[%emt 0:00:49]} Qd6+ {[%emt 0:00:02]} 29. Kh1 {[%emt 0:00:09]} Qxa3 {[%emt 0:00:03]} 30. Nb5 {[%emt 0:00:25]} Qb3 {[%emt 0:00:43]} 31. Nc3 {[%emt 0:02:18]} Re6 {[%emt 0:00:05]} 32. Rb1 {[%emt 0:01:23]} Qc4 {[%emt 0:00:02]} 33. Ne2 {[%emt 0:00:23]} Ra6 {[%emt 0:02:04]} 34. Rxb7 {[%emt 0:03:41]} Ra2 {[%emt 0:01:22]} 35. Rb2 {[%emt 0:00:15]} Ra1+ {[%emt 0:00:05]} 36. Kh2 {[%emt 0:00:18]} Qc7+ {[%emt 0:01:11]} 37. Ng3 {[%emt 0:01:03]} Nf5 {[%emt 0:01:25]} 38. Qc2 {[%emt 0:04:23]} Nxg3 {[%emt 0:00:11]} 39. fxg3 {[%emt 0:00:11]} Qxc2 {[%emt 0:04:15]} 40. Rxc2 {[%emt 0:00:01]} Re1 {[%emt 0:00:10]} 41. g4 {[%emt 0:02:30]} Rxe3 {[%emt 0:00:04]} 42. Rc5 {[%emt 0:00:06]} Kf8 {[%emt 0:01:35]} 43. Rxd5 {[%emt 0:01:05]} Ke7 {[%emt 0:00:07]} 44. Kg1 {[%emt 0:00:17]} Re4 {[%emt 0:03:06]} 45. Kf2 {[%emt 0:00:41]} Ke6 {[%emt 0:00:02]} 46. Rd8 {[%emt 0:00:13]} Ke7 {[%emt 0:00:01]} 47. Kf3 {[%emt 0:00:17]} f5 {[%emt 0:00:07]} 48. gxf5 {[%emt 0:01:15]} gxf5 {[%emt 0:00:02]} 49. Rh8 {[%emt 0:00:11]} Rxd4 {[%emt 0:00:02]} 50. Rxh7+ {[%emt 0:00:07]} Kf6 {[%emt 0:00:01]} 51. Rh8 {[%emt 0:01:09]} Rd3+ {[%emt 0:00:37]} 52. Ke2 {[%emt 0:00:37]} Ra3 {[%emt 0:00:09]} 53. Rd8 {[%emt 0:00:19]} Kg5 {[%emt 0:00:33]} 54. Rd3 {[%emt 0:00:34]} Ra1 {[%emt 0:01:26]} 55. Kf3 {[%emt 0:00:56]} Rf1+ {[%emt 0:00:28]} 56. Kg3 {[%emt 0:00:06]} f4+ {[%emt 0:01:40]} 57. Kh2 {[%emt 0:00:05]} Kf5 {[%emt 0:00:45]} 58. Ra3 {[%emt 0:01:47]} Ke4 {[%emt 0:01:20]} 59. Ra4+ {[%emt 0:00:16]} Kf5 {[%emt 0:00:15]} 60. Ra5+ {[%emt 0:00:47]} Ke4 {[%emt 0:01:15]} 61. Ra4+ {[%emt 0:00:31]} Kf5 {[%emt 0:00:04]} 62. Rb4 {[%emt 0:00:04]} Ke5 {[%emt 0:01:03]} 63. Rb5+ {[%emt 0:00:50]} Ke4 {[%emt 0:00:05]} 64. h4 {[%emt 0:00:10]} f3 {[%emt 0:02:01]} 65. Rb4+ {[%emt 0:00:07]} Kf5 {[%emt 0:00:30]} 66. g3 {[%emt 0:00:29]} Kg6 {[%emt 0:00:33]} 67. Rf4 {[%emt 0:02:54]} Kh5 {[%emt 0:00:02]} 68. Rf5+ {[%emt 0:00:13]} Kg6 {[%emt 0:00:04]} 69. Rf8 {[%emt 0:00:13]} Kh5 {[%emt 0:00:25]} 70. Rf4 {[%emt 0:00:09]} Kg6 {[%emt 0:02:29]} 71. Kh3 {[%emt 0:00:11]} Kh6 {[%emt 0:00:26]} 72. Kg4 {[%emt 0:00:11]} f2 {[%emt 0:00:06]} 73. Kh3 {[%emt 0:00:18]} Kh5 {[%emt 0:00:11]} 74. Kg2 {[%emt 0:00:20]} Ra1 {[%emt 0:00:19]} 75. Rxf2 {[%emt 0:00:16]} Ra4 {[%emt 0:00:03]} 76. Rf5+ {[%emt 0:00:13]} Kg6 {[%emt 0:00:02]} 77. Rb5 {[%emt 0:00:05]} Rc4 {[%emt 0:00:04]} 78. Kh3 {[%emt 0:00:25]} Ra4 {[%emt 0:00:06]} 79. Rb6+ {[%emt 0:00:22]} Kg7 {[%emt 0:00:08]} 80. h5 {[%emt 0:00:10]} Rc4 {[%emt 0:00:04]} 81. g4 {[%emt 0:00:11]} Ra4 {[%emt 0:00:02]} 82. Kh4 {[%emt 0:00:10]} Ra5 {[%emt 0:00:07]} 83. Rb7+ {[%emt 0:00:16]} Kh8 {[%emt 0:00:07]} 84. h6 {[%emt 0:00:26]} Ra4 {[%emt 0:00:44]} 85. Kh5 {[%emt 0:00:27]} Ra5+ {[%emt 0:00:21]} 86. g5 {[%emt 0:00:07]} Kg8 {[%emt 0:00:04]} 87. Re7 {[%emt 0:01:57]} Rb5 {[%emt 0:01:07]} 88. Kg6 {[%emt 0:00:53]} Rb8 {[%emt 0:00:07]} 89. Re5 {[%emt 0:03:15]} Rf8 {[%emt 0:00:20]} 90. Rb5 {[%emt 0:00:52]} Kh8 {[%emt 0:00:12]} 91. Kh5 {[%emt 0:00:12]} Kg8 {[%emt 0:00:32]} 92. g6 {[%emt 0:00:20]} Ra8 {[%emt 0:00:02]} 93. h7+ {[%emt 0:00:30]} Kh8 {[%emt 0:00:34]} 94. Kh6 {[%emt 0:00:07]} 1-0

[Event "41st Nezhmetdinov Memorial 2019"]
[Site "Kazan"]
[Date "2019.06.04"]
[Round "5.6"]
[White "Yudin, Sergei"]
[Black "Tokarev, Ilya"]
[Result "0-1"]
[ECO "B13"]
[WhiteElo "2507"]
[BlackElo "2318"]
[Annotator "RC"]
[PlyCount "62"]
[EventDate "2019.05.31"]
[EventType "swiss"]
[EventCountry "RUS"]
[SourceTitle "playchess.com"]
[Source "ChessBase"]
[SourceQuality "1"]
[TimeControl "5400+30"]

1. e4 {[%emt 0:00:00]} c6 {[%emt 0:00:00]} 2. d4 {[%emt 0:00:00]} d5 {[%emt 0:00:00]} 3. exd5 {[%emt 0:00:01]} cxd5 {[%emt 0:00:00]} 4. Bd3 {[%emt 0:00:04]} Nc6 {[%emt 0:00:05]} 5. c3 {[%emt 0:00:07]} Qc7 {[%emt 0:00:15]} 6. Ne2 {[%emt 0:03:17]} Bg4 {[%emt 0:00:35]} 7. O-O {[%emt 0:00:20]} Bh5 {[%emt 0:00:25]} 8. f4 {[%emt 0:05:22]} e6 {[%emt 0:05:57]} 9. Qe1 {[%emt 0:00:23]} Bd6 {[%emt 0:00:29]} 10. Ng3 {[%emt 0:01:17]} Nf6 {[%emt 0:00:26]} 11. Nxh5 {[%emt 0:00:19]} Nxh5 {[%emt 0:00:07]} 12. g3 {[%emt 0:00:14]} Nf6 {[%emt 0:00:09]} 13. Nd2 {[%emt 0:00:03]} h5 {[%emt 0:16:23]} 14. Nf3 {[%emt 0:02:57]} Kf8 {[%emt 0:00:41]} 15. Qe2 {[%emt 0:01:08]} Ne7 {[%emt 0:06:44]} 16. Bd2 {[%emt 0:05:02]} g6 {[%emt 0:01:55]} 17. b3 {[%emt 0:11:40]} Nf5 {[%emt 0:21:34]} 18. c4 {[%emt 0:03:57]} Kg7 {[%emt 0:05:35]} 19. Rac1 {[%emt 0:03:42]} Qd8 {[%emt 0:00:59]} 20. c5 {[%emt 0:00:26]} Bc7 {[%emt 0:00:35]} 21. Be1 {[%emt 0:01:42]} Ng4 {[%emt 0:08:08]} 22. Bc3 {[%emt 0:17:23]} h4 {[%emt 0:04:26]} 23. Nxh4 {[%emt 0:03:29]} Rxh4 {[%emt 0:00:11]} 24. gxh4 {[%emt 0:00:22]} Qxh4 {[%emt 0:01:18]} 25. Bxf5 {[%emt 0:05:33]} exf5 {[%emt 0:02:52]} 26. Be1 {[%emt 0:01:23]} Qh8 {[%emt 0:00:07]} 27. Bg3 {[%emt 0:01:01]} Re8 {[%emt 0:00:05]} 28. Qd3 {[%emt 0:06:45]} Re3 {[%emt 0:01:29]} 29. Qd2 {[%emt 0:00:17]} Ba5 {[%emt 0:04:44]} 30. Qb2 {[%emt 0:01:52]} Rd3 {[%emt 0:04:49]} 31. Be1 {[%emt 0:07:06]} Rd2 {[%emt 0:00:37]} 0-1

[Event "41st Nezhmetdinov Memorial 2019"]
[Site "Kazan"]
[Date "2019.06.05"]
[Round "6.9"]
[White "Makhmutov, Rail"]
[Black "Svetushkin, Dmitry"]
[Result "1/2-1/2"]
[ECO "E20"]
[WhiteElo "2411"]
[BlackElo "2536"]
[Annotator "RC"]
[PlyCount "112"]
[EventDate "2019.05.31"]
[EventType "swiss"]
[EventCountry "RUS"]
[SourceTitle "playchess.com"]
[Source "ChessBase"]
[SourceQuality "1"]
[TimeControl "5400+30"]

1. d4 {[%emt 0:00:00]} Nf6 {[%emt 0:00:37]} 2. c4 {[%emt 0:00:00]} e6 {[%emt 0:00:07]} 3. Nc3 {[%emt 0:00:45]} Bb4 {[%emt 0:02:13]} 4. g3 {[%emt 0:00:41]} c5 {[%emt 0:00:24]} 5. Nf3 {[%emt 0:00:13]} Nc6 {[%emt 0:00:16]} 6. Bg2 {[%emt 0:00:25]} Ne4 {[%emt 0:00:12]} 7. Bd2 {[%emt 0:01:32]} Nxd2 {[%emt 0:00:44]} 8. Qxd2 {[%emt 0:00:02]} cxd4 {[%emt 0:00:43]} 9. Nxd4 {[%emt 0:00:02]} O-O {[%emt 0:00:30]} 10. Nc2 {[%emt 0:04:33]} Be7 {[%emt 0:00:09]} 11. O-O {[%emt 0:00:13]} a6 {[%emt 0:00:26]} 12. Rad1 {[%emt 0:04:45]} Qc7 {[%emt 0:04:11]} 13. Ne4 {[%emt 0:06:08]} Ne5 {[%emt 0:10:54]} 14. b3 {[%emt 0:02:51]} Rb8 {[%emt 0:05:10]} 15. Nd6 {[%emt 0:06:43]} b5 {[%emt 0:03:24]} 16. cxb5 {[%emt 0:18:38]} axb5 {[%emt 0:00:45]} 17. Ne3 {[%emt 0:00:48]} Ba6 {[%emt 0:03:40]} 18. Qd4 {[%emt 0:14:11]} Ng6 {[%emt 0:14:13]} 19. Rd2 {[%emt 0:03:53]} Rb6 {[%emt 0:05:44]} 20. Ne4 {[%emt 0:02:15]} d5 {[%emt 0:01:41]} 21. Rc2 {[%emt 0:00:34]} Qa7 {[%emt 0:03:39]} 22. Nc5 {[%emt 0:03:21]} b4 {[%emt 0:00:31]} 23. Nd7 {[%emt 0:01:07]} Rfb8 {[%emt 0:03:16]} 24. Nxb6 {[%emt 0:05:00]} Rxb6 {[%emt 0:00:04]} 25. Ng4 {[%emt 0:04:45]} Qb8 {[%emt 0:01:03]} 26. Rfc1 {[%emt 0:03:25]} h5 {[%emt 0:03:04]} 27. Ne3 {[%emt 0:00:35]} Bf6 {[%emt 0:00:47]} 28. Qd2 {[%emt 0:00:09]} h4 {[%emt 0:04:08]} 29. Rc6 {[%emt 0:01:35]} Rxc6 {[%emt 0:02:10]} 30. Rxc6 {[%emt 0:00:01]} Bc3 {[%emt 0:00:10]} 31. Qc2 {[%emt 0:02:42]} Bb5 {[%emt 0:17:58]} 32. Rxe6 {[%emt 0:01:37]} fxe6 {[%emt 0:00:06]} 33. Qxg6 {[%emt 0:00:03]} Qe8 {[%emt 0:00:13]} 34. Qg4 {[%emt 0:00:19]} hxg3 {[%emt 0:00:11]} 35. hxg3 {[%emt 0:00:05]} Bd7 {[%emt 0:05:38]} 36. Bh3 {[%emt 0:00:43]} Qa8 {[%emt 0:00:04]} 37. Qg6 {[%emt 0:01:27]} Qc6 {[%emt 0:00:04]} 38. Bg4 {[%emt 0:01:04]} Kf8 {[%emt 0:00:08]} 39. Bh5 {[%emt 0:01:56]} Ke7 {[%emt 0:00:05]} 40. Qf7+ {[%emt 0:01:10]} Kd8 {[%emt 0:01:06]} 41. a3 {[%emt 0:02:02]} bxa3 {[%emt 0:00:50]} 42. Qf8+ {[%emt 0:00:13]} Kc7 {[%emt 0:00:06]} 43. Qxa3 {[%emt 0:00:05]} Qb6 {[%emt 0:00:27]} 44. Bf3 {[%emt 0:01:40]} Bd4 {[%emt 0:03:15]} 45. Ng4 {[%emt 0:02:02]} Qd6 {[%emt 0:00:58]} 46. Qa5+ {[%emt 0:00:41]} Qb6 {[%emt 0:02:35]} 47. Qd2 {[%emt 0:00:24]} Qc5 {[%emt 0:01:36]} 48. Qf4+ {[%emt 0:01:34]} Kb7 {[%emt 0:00:06]} 49. e4 {[%emt 0:00:40]} Qc7 {[%emt 0:01:51]} 50. exd5 {[%emt 0:03:02]} Qxf4 {[%emt 0:00:04]} 51. gxf4 {[%emt 0:00:25]} Kc7 {[%emt 0:00:43]} 52. Ne3 {[%emt 0:01:08]} Kd6 {[%emt 0:00:51]} 53. Nc4+ {[%emt 0:01:18]} Kc5 {[%emt 0:00:12]} 54. dxe6 {[%emt 0:00:34]} Bxe6 {[%emt 0:00:08]} 55. Be2 {[%emt 0:00:24]} Bxc4 {[%emt 0:00:14]} 56. Bxc4 {[%emt 0:00:02]} Bf6 {[%emt 0:00:04]} 1/2-1/2

[Event "41st Nezhmetdinov Memorial 2019"]
[Site "Kazan"]
[Date "2019.06.05"]
[Round "6.10"]
[White "Makoveev, Ilya"]
[Black "Belyakov, Bogdan"]
[Result "0-1"]
[ECO "B29"]
[WhiteElo "2304"]
[BlackElo "2483"]
[Annotator "RC"]
[PlyCount "162"]
[EventDate "2019.05.31"]
[EventType "swiss"]
[EventCountry "RUS"]
[SourceTitle "playchess.com"]
[Source "ChessBase"]
[SourceQuality "1"]
[TimeControl "5400+30"]

1. Nf3 {[%emt 0:00:00]} c5 {[%emt 0:02:18]} 2. e4 {[%emt 0:02:00]} Nf6 {[%emt 0:01:25]} 3. e5 {[%emt 0:01:20]} Nd5 {[%emt 0:00:07]} 4. Nc3 {[%emt 0:00:10]} e6 {[%emt 0:00:31]} 5. Nxd5 {[%emt 0:00:58]} exd5 {[%emt 0:00:05]} 6. d4 {[%emt 0:00:02]} Nc6 {[%emt 0:00:07]} 7. dxc5 {[%emt 0:12:00]} Bxc5 {[%emt 0:00:57]} 8. Qxd5 {[%emt 0:00:31]} d6 {[%emt 0:00:06]} 9. exd6 {[%emt 0:37:06]} Qb6 {[%emt 0:00:09]} 10. Bc4 {[%emt 0:03:33]} Bxf2+ {[%emt 0:21:25]} 11. Kf1 {[%emt 0:00:52]} O-O {[%emt 0:03:50]} 12. Qb5 {[%emt 0:07:37]} Bc5 {[%emt 0:26:52]} 13. Qxb6 {[%emt 0:08:12]} axb6 {[%emt 0:00:21]} 14. Bf4 {[%emt 0:00:10]} Be6 {[%emt 0:00:05]} 15. Bb3 {[%emt 0:10:38]} Bxb3 {[%emt 0:05:32]} 16. cxb3 {[%emt 0:00:18]} Rfd8 {[%emt 0:00:05]} 17. Ke2 {[%emt 0:03:53]} Bxd6 {[%emt 0:04:01]} 18. Bxd6 {[%emt 0:01:17]} Rxd6 {[%emt 0:00:06]} 19. Rhd1 {[%emt 0:00:31]} Rxd1 {[%emt 0:02:42]} 20. Kxd1 {[%emt 0:00:10]} f5 {[%emt 0:01:59]} 21. Kd2 {[%emt 0:04:37]} Kf7 {[%emt 0:02:11]} 22. Kc3 {[%emt 0:01:50]} Kf6 {[%emt 0:06:55]} 23. Kc4 {[%emt 0:02:32]} Ra5 {[%emt 0:05:08]} 24. b4 {[%emt 0:00:31]} Ne5+ {[%emt 0:00:05]} 25. Kc3 {[%emt 0:00:53]} Rd5 {[%emt 0:00:42]} 26. Nd4 {[%emt 0:00:24]} g5 {[%emt 0:03:48]} 27. a4 {[%emt 0:00:50]} f4 {[%emt 0:02:04]} 28. Rf1 {[%emt 0:00:34]} Ng4 {[%emt 0:00:58]} 29. h3 {[%emt 0:00:30]} Ne3 {[%emt 0:00:10]} 30. Rg1 {[%emt 0:00:28]} h5 {[%emt 0:07:14]} 31. g3 {[%emt 0:00:21]} fxg3 {[%emt 0:00:31]} 32. Rxg3 {[%emt 0:00:06]} Rxd4 {[%emt 0:01:21]} 33. Rxe3 {[%emt 0:00:04]} Rh4 {[%emt 0:00:57]} 34. a5 {[%emt 0:00:26]} b5 {[%emt 0:01:14]} 35. Rf3+ {[%emt 0:00:30]} Ke6 {[%emt 0:00:17]} 36. Re3+ {[%emt 0:00:49]} Kd6 {[%emt 0:00:14]} 37. Rd3+ {[%emt 0:00:39]} Kc6 {[%emt 0:00:51]} 38. Rf3 {[%emt 0:00:59]} Rf4 {[%emt 0:00:38]} 39. Rxf4 {[%emt 0:00:20]} gxf4 {[%emt 0:00:04]} 40. Kd4 {[%emt 0:00:02]} f3 {[%emt 0:00:06]} 41. Ke3 {[%emt 0:00:03]} Kd5 {[%emt 0:00:03]} 42. Kxf3 {[%emt 0:01:00]} Kc4 {[%emt 0:00:04]} 43. Kg3 {[%emt 0:01:12]} Kxb4 {[%emt 0:00:32]} 44. Kh4 {[%emt 0:00:01]} Kb3 {[%emt 0:00:06]} 45. Kxh5 {[%emt 0:00:02]} Kxb2 {[%emt 0:00:08]} 46. h4 {[%emt 0:00:05]} b4 {[%emt 0:00:04]} 47. Kg5 {[%emt 0:00:18]} b3 {[%emt 0:00:17]} 48. h5 {[%emt 0:00:03]} Ka2 {[%emt 0:01:55]} 49. h6 {[%emt 0:00:35]} b2 {[%emt 0:00:05]} 50. h7 {[%emt 0:00:02]} b1=Q {[%emt 0:00:07]} 51. h8=Q {[%emt 0:00:06]} Qb5+ {[%emt 0:00:22]} 52. Kf4 {[%emt 0:00:30]} Qxa5 {[%emt 0:00:08]} 53. Qc8 {[%emt 0:02:05]} Qd5 {[%emt 0:01:38]} 54. Qc2+ {[%emt 0:01:13]} Ka3 {[%emt 0:00:08]} 55. Qc1+ {[%emt 0:00:30]} Kb4 {[%emt 0:00:29]} 56. Qe1+ {[%emt 0:00:35]} Kc5 {[%emt 0:00:58]} 57. Qa5+ {[%emt 0:00:56]} b5 {[%emt 0:00:09]} 58. Ke3 {[%emt 0:00:30]} Qb3+ {[%emt 0:01:04]} 59. Ke2 {[%emt 0:00:20]} Qc2+ {[%emt 0:00:07]} 60. Ke1 {[%emt 0:00:18]} Kc4 {[%emt 0:00:28]} 61. Qa6 {[%emt 0:00:35]} Qd3 {[%emt 0:00:58]} 62. Qa2+ {[%emt 0:00:27]} Kd4 {[%emt 0:00:19]} 63. Qa7+ {[%emt 0:00:31]} Kc3 {[%emt 0:00:31]} 64. Qa3+ {[%emt 0:00:34]} Kc4 {[%emt 0:00:06]} 65. Qa2+ {[%emt 0:00:33]} Kb4 {[%emt 0:01:30]} 66. Qb2+ {[%emt 0:00:22]} Ka4 {[%emt 0:00:08]} 67. Qa2+ {[%emt 0:00:45]} Qa3 {[%emt 0:00:06]} 68. Qc2+ {[%emt 0:00:34]} Qb3 {[%emt 0:00:05]} 69. Qc6 {[%emt 0:00:17]} Qd3 {[%emt 0:00:31]} 70. Qe8 {[%emt 0:00:43]} Ka3 {[%emt 0:01:03]} 71. Qa8+ {[%emt 0:00:10]} Kb2 {[%emt 0:00:33]} 72. Qg2+ {[%emt 0:00:37]} Qc2 {[%emt 0:01:20]} 73. Qb7 {[%emt 0:00:09]} Qc3+ {[%emt 0:00:26]} 74. Kd1 {[%emt 0:00:29]} Qd4+ {[%emt 0:00:15]} 75. Ke1 {[%emt 0:00:12]} b4 {[%emt 0:00:16]} 76. Qg2+ {[%emt 0:00:32]} Ka1 {[%emt 0:00:09]} 77. Qa8+ {[%emt 0:00:33]} Kb1 {[%emt 0:00:07]} 78. Qa4 {[%emt 0:01:13]} Qc3+ {[%emt 0:00:32]} 79. Kd1 {[%emt 0:00:32]} Qc1+ {[%emt 0:00:06]} 80. Ke2 {[%emt 0:00:05]} Qc2+ {[%emt 0:00:05]} 81. Qxc2+ {[%emt 0:00:13]} Kxc2 {[%emt 0:00:05]} 0-1

[Event "41st Nezhmetdinov Memorial 2019"]
[Site "Kazan"]
[Date "2019.06.06"]
[Round "7.6"]
[White "Yudin, Sergei"]
[Black "Pridorozhni, Aleksei"]
[Result "0-1"]
[ECO "B51"]
[WhiteElo "2507"]
[BlackElo "2588"]
[Annotator "RC"]
[PlyCount "92"]
[EventDate "2019.05.31"]
[EventType "swiss"]
[EventCountry "RUS"]
[SourceTitle "playchess.com"]
[Source "ChessBase"]
[SourceQuality "1"]
[TimeControl "5400+30"]

1. e4 {[%emt 0:00:00]} c5 {[%emt 0:00:00]} 2. Nf3 {[%emt 0:00:00]} d6 {[%emt 0:00:00]} 3. Bb5+ {[%emt 0:00:11]} Nc6 {[%emt 0:00:05]} 4. O-O {[%emt 0:01:22]} Bd7 {[%emt 0:00:10]} 5. Re1 {[%emt 0:01:32]} a6 {[%emt 0:00:16]} 6. Bc4 {[%emt 0:02:05]} Nf6 {[%emt 0:01:06]} 7. c3 {[%emt 0:00:46]} Bg4 {[%emt 0:00:27]} 8. d4 {[%emt 0:00:16]} Bxf3 {[%emt 0:01:10]} 9. gxf3 {[%emt 0:00:27]} e6 {[%emt 0:03:27]} 10. d5 {[%emt 0:13:00]} Ne5 {[%emt 0:01:11]} 11. Bf1 {[%emt 0:08:16]} g5 {[%emt 0:10:49]} 12. dxe6 {[%emt 0:12:24]} fxe6 {[%emt 0:00:12]} 13. Bxg5 {[%emt 0:13:36]} Rg8 {[%emt 0:00:24]} 14. f4 {[%emt 0:00:21]} h6 {[%emt 0:01:21]} 15. fxe5 {[%emt 0:01:20]} Rxg5+ {[%emt 0:01:42]} 16. Bg2 {[%emt 0:03:12]} dxe5 {[%emt 0:00:53]} 17. Nd2 {[%emt 0:02:19]} Qc7 {[%emt 0:17:42]} 18. Nc4 {[%emt 0:11:45]} Qg7 {[%emt 0:11:14]} 19. Ne3 {[%emt 0:04:50]} Ng4 {[%emt 0:04:23]} 20. Qe2 {[%emt 0:01:01]} Nxe3 {[%emt 0:02:11]} 21. fxe3 {[%emt 0:00:22]} O-O-O {[%emt 0:00:11]} 22. Rad1 {[%emt 0:00:30]} Bd6 {[%emt 0:00:18]} 23. Kh1 {[%emt 0:00:18]} Rg8 {[%emt 0:00:25]} 24. Bf3 {[%emt 0:00:44]} Kb8 {[%emt 0:02:19]} 25. Qf2 {[%emt 0:02:53]} Qf8 {[%emt 0:14:06]} 26. c4 {[%emt 0:02:11]} Be7 {[%emt 0:01:15]} 27. Rg1 {[%emt 0:01:39]} R8g7 {[%emt 0:01:08]} 28. Rxg5 {[%emt 0:00:40]} Bxg5 {[%emt 0:00:07]} 29. Qe2 {[%emt 0:01:23]} Rf7 {[%emt 0:01:48]} 30. Rf1 {[%emt 0:01:43]} h5 {[%emt 0:01:12]} 31. Kg2 {[%emt 0:02:59]} h4 {[%emt 0:00:30]} 32. h3 {[%emt 0:01:50]} Qh6 {[%emt 0:05:48]} 33. Re1 {[%emt 0:00:22]} Rd7 {[%emt 0:00:16]} 34. Kh1 {[%emt 0:01:06]} Ka7 {[%emt 0:02:37]} 35. a3 {[%emt 0:01:06]} Bd8 {[%emt 0:00:13]} 36. Qf2 {[%emt 0:02:43]} Rd3 {[%emt 0:01:35]} 37. Rd1 {[%emt 0:04:18]} Rxd1+ {[%emt 0:00:07]} 38. Bxd1 {[%emt 0:00:05]} Bg5 {[%emt 0:00:03]} 39. Qe2 {[%emt 0:03:21]} Bxe3 {[%emt 0:00:11]} 40. b3 {[%emt 0:00:10]} Bd4 {[%emt 0:01:52]} 41. a4 {[%emt 0:00:23]} Qg5 {[%emt 0:00:32]} 42. Qg2 {[%emt 0:00:43]} Qe3 {[%emt 0:00:09]} 43. Kh2 {[%emt 0:00:41]} Kb6 {[%emt 0:01:10]} 44. Bc2 {[%emt 0:00:32]} Ka5 {[%emt 0:00:11]} 45. Bd1 {[%emt 0:00:09]} Kb4 {[%emt 0:00:22]} 46. Bc2 {[%emt 0:00:29]} Qe1 {[%emt 0:00:22]} 0-1

[Event "41st Nezhmetdinov Memorial 2019"]
[Site "Kazan"]
[Date "2019.06.06"]
[Round "7.9"]
[White "Kazakovskiy, Valeriy"]
[Black "Khanin, Semen"]
[Result "1/2-1/2"]
[ECO "A05"]
[WhiteElo "2457"]
[BlackElo "2529"]
[Annotator "RC"]
[PlyCount "85"]
[EventDate "2019.05.31"]
[EventType "swiss"]
[EventCountry "RUS"]
[SourceTitle "playchess.com"]
[Source "ChessBase"]
[SourceQuality "1"]
[TimeControl "5400+30"]

1. Nf3 {[%emt 0:00:00]} Nf6 {[%emt 0:04:20]} 2. c4 {[%emt 0:00:00]} g6 {[%emt 0:00:14]} 3. Nc3 {[%emt 0:00:00]} d5 {[%emt 0:00:04]} 4. Qa4+ {[%emt 0:00:10]} Bd7 {[%emt 0:03:09]} 5. Qb3 {[%emt 0:00:08]} dxc4 {[%emt 0:00:44]} 6. Qxc4 {[%emt 0:00:10]} a6 {[%emt 0:00:30]} 7. d4 {[%emt 0:00:24]} b5 {[%emt 0:00:32]} 8. Qb3 {[%emt 0:00:20]} Bg7 {[%emt 0:01:32]} 9. e4 {[%emt 0:00:34]} c5 {[%emt 0:08:37]} 10. dxc5 {[%emt 0:00:19]} Bc6 {[%emt 0:03:26]} 11. e5 {[%emt 0:18:29]} Nd5 {[%emt 0:05:26]} 12. Be2 {[%emt 0:11:25]} Nd7 {[%emt 0:13:57]} 13. Nxd5 {[%emt 0:13:36]} Nxc5 {[%emt 0:00:23]} 14. Qa3 {[%emt 0:05:13]} Qxd5 {[%emt 0:00:26]} 15. O-O {[%emt 0:00:17]} Ne6 {[%emt 0:09:36]} 16. Rd1 {[%emt 0:04:26]} Qc5 {[%emt 0:05:57]} 17. Qxc5 {[%emt 0:04:04]} Nxc5 {[%emt 0:00:05]} 18. Be3 {[%emt 0:00:13]} Ne6 {[%emt 0:00:45]} 19. Rac1 {[%emt 0:02:30]} Rc8 {[%emt 0:01:07]} 20. Nd4 {[%emt 0:03:13]} Nxd4 {[%emt 0:00:15]} 21. Bxd4 {[%emt 0:00:10]} O-O {[%emt 0:00:43]} 22. f4 {[%emt 0:00:53]} Rfd8 {[%emt 0:02:00]} 23. Bb6 {[%emt 0:02:36]} Rxd1+ {[%emt 0:01:08]} 24. Bxd1 {[%emt 0:00:46]} Bb7 {[%emt 0:04:04]} 25. Rxc8+ {[%emt 0:00:23]} Bxc8 {[%emt 0:00:05]} 26. Kf2 {[%emt 0:00:26]} g5 {[%emt 0:07:45]} 27. g3 {[%emt 0:00:46]} gxf4 {[%emt 0:00:11]} 28. gxf4 {[%emt 0:00:08]} f6 {[%emt 0:02:39]} 29. Bb3+ {[%emt 0:02:39]} e6 {[%emt 0:00:16]} 30. Bd4 {[%emt 0:01:58]} Kf7 {[%emt 0:05:46]} 31. Bc2 {[%emt 0:00:51]} f5 {[%emt 0:00:51]} 32. Bc5 {[%emt 0:02:07]} Bb7 {[%emt 0:00:35]} 33. Bd1 {[%emt 0:00:22]} Kg6 {[%emt 0:00:24]} 34. Kg3 {[%emt 0:03:31]} Bh6 {[%emt 0:00:16]} 35. a4 {[%emt 0:03:14]} Bc6 {[%emt 0:00:13]} 36. axb5 {[%emt 0:01:25]} axb5 {[%emt 0:00:06]} 37. Be2 {[%emt 0:00:07]} Bd7 {[%emt 0:05:41]} 38. Bf3 {[%emt 0:00:38]} Be8 {[%emt 0:00:05]} 39. Bb7 {[%emt 0:01:04]} Bd7 {[%emt 0:00:03]} 40. Bd6 {[%emt 0:03:55]} Kh5 {[%emt 0:01:14]} 41. Be7 {[%emt 0:01:56]} Kg6 {[%emt 0:00:09]} 42. Bb4 {[%emt 0:03:50]} Kh5 {[%emt 0:00:13]} 43. Bc5 {[%emt 0:01:02]} 1/2-1/2